fUSD/lending_fUSD_20260107
["ID","MTS","AMOUNT","RATE_DAILY","PERIOD"]
[400736048,1767804641972,-174.06741652,0.00015566,2]
[400736050,1767804641981,-500.0,0.00015566,2]
[400736052,1767804641990,-500.0,0.00015566,2]
[400736054,1767804641999,-206.3800823,0.00015566,2]
[400736056,1767804642009,-1226.0,0.00015566,2]
[400736057,1767804642018,-500.0,0.00015566,2]
[400736060,1767804642027,-543.0,0.00015566,2]
[400736062,1767804642037,-519.25199485,0.00015566,2]
[400736063,1767804642046,-500.0,0.00015566,2]
[400736065,1767804642055,-500.0,0.00015602,2]
[400736067,1767804642065,-500.0,0.00015616,2]
[400736069,1767804642074,-911.91622264,0.00015621,2]
[400736071,1767804642083,-1000.0,0.00015621,2]
[400736073,1767804642092,-501.43294385,0.00015621,2]
[400736075,1767804642101,-1015.65451742,0.00015621,2]
[400736078,1767804642110,-556.0741427,0.00015621,2]
[400736079,1767804642119,-1000.0,0.00015621,2]
[400736082,1767804642129,-1000.0,0.00015621,2]
[400736084,1767804642143,-1000.0,0.00015621,2]
[400736085,1767804642152,-1000.0,0.00015621,2]
[400736087,1767804642161,-166.49390426,0.00015621,2]
[400736089,1767804642170,-442.83023798,0.00015621,2]
[400736092,1767804642181,-1000.0,0.00015621,2]
[400736094,1767804642190,-535.8717523,0.00015621,2]
[400736095,1767804642200,-1000.0,0.00015621,2]
[400736097,1767804642209,-1000.0,0.00015621,2]
[400736099,1767804642219,-1000.0,0.00015621,2]
[400736101,1767804642228,-1000.0,0.00015621,2]
[400736103,1767804642237,-1000.0,0.00015621,2]
[400736105,1767804642246,-231.23799714,0.00015621,2]
[400736107,1767804642255,-500.0,0.00015621,2]
[400736109,1767804642265,-500.0,0.00015621,2]
[400736112,1767804642274,-1226.0,0.00015621,2]
[400736113,1767804642283,-344.00411142,0.00015621,2]
[400736116,1767804642293,-543.0,0.00015621,2]
[400736117,1767804642303,-500.0,0.00015621,2]
[400736119,1767804642312,-1571.06,0.00015634,2]
[400736122,1767804642324,-24850.75281285,0.00015651,2]
[400736124,1767804642334,-273.0,0.00015657,2]
[400736126,1767804642347,-500.0,0.00015671,2]
[400736128,1767804642357,-500.0,0.00015676,2]
[400736130,1767804642366,-500.0,0.00015676,2]
[400736132,1767804642376,-1226.0,0.00015676,2]
[400736134,1767804642385,-543.0,0.00015676,2]
[400736136,1767804642395,-500.0,0.00015676,2]
[400736137,1767804642404,-25143.49381791,0.00015688,2]
[400736139,1767804642414,-151.0,0.00015691,2]
[400736141,1767804642423,-500.0,0.00015694,2]
[400736142,1767804642432,-327.25369848,0.00015694,2]
[400736143,1767804642441,-151.0,0.00015695,2]
[400736144,1767804642450,-151.0,0.00015695,2]
[400736145,1767804642459,-448.72451731,0.00015696,2]
[400736146,1767804642468,-322.6107,0.00015696,2]
[400736147,1767804642478,-1500.0,0.00015696,2]
[400736148,1767804642488,-1500.0,0.00015696,2]
[400736149,1767804642497,-620.0,0.00015696,2]
[400736150,1767804642506,-1500.0,0.00015696,2]
[400736151,1767804642515,-500.0,0.00015696,2]
[400736152,1767804642525,-1500.0,0.00015696,2]
[400736153,1767804642534,-500.0,0.00015696,2]
[400736155,1767804642543,-1500.0,0.00015696,2]
[400736157,1767804642554,-500.0,0.00015696,2]
[400736159,1767804642563,-1500.0,0.00015696,2]
[400736161,1767804642572,-500.0,0.00015696,2]
[400736163,1767804642582,-500.0,0.00015696,2]
[400736165,1767804642591,-1500.0,0.00015696,2]
[400736167,1767804642601,-500.0,0.00015696,2]
[400736169,1767804642610,-500.0,0.00015696,2]
[400736171,1767804642619,-1500.0,0.00015696,2]
[400736173,1767804642628,-500.0,0.00015696,2]
[400736175,1767804642637,-500.0,0.00015696,2]
[400736177,1767804642646,-578.20924308,0.00015696,2]
[400736179,1767804642656,-1500.0,0.00015696,2]
[400736181,1767804642665,-500.0,0.00015696,2]
[400736183,1767804642674,-500.0,0.00015696,2]
[400736185,1767804642683,-1500.0,0.00015696,2]
[400736187,1767804642693,-500.0,0.00015696,2]
[400736189,1767804642702,-500.0,0.00015696,2]
[400736191,1767804642711,-1500.0,0.00015696,2]
[400736193,1767804642720,-500.0,0.00015696,2]
[400736195,1767804642730,-500.0,0.00015696,2]
[400736197,1767804642739,-500.0,0.00015696,2]
[400736199,1767804642748,-500.0,0.00015696,2]
[400736201,1767804642757,-500.0,0.00015696,2]
[400736203,1767804642767,-500.0,0.00015696,2]
[400736205,1767804642776,-327.23086226,0.00015696,2]
[400736207,1767804642785,-200.0,0.00015696,2]
[400736209,1767804642795,-207.4,0.00015696,2]
[400736212,1767804642805,-215.0738,0.00015696,2]
[400736214,1767804642815,-223.0315306,0.00015696,2]
[400736216,1767804642825,-231.28369723,0.00015696,2]
[400736218,1767804642835,-151.55763012,0.00015696,2]
[400736220,1767804642844,-2000.0,0.00015696,2]
[400736222,1767804642853,-239.84119403,0.00015696,2]
[400736224,1767804642863,-2000.0,0.00015696,2]
[400736226,1767804642873,-248.71531821,0.00015696,2]
[400736228,1767804642882,-2000.0,0.00015696,2]
[400736230,1767804642891,-257.91778498,0.00015696,2]
[400736232,1767804642900,-500.0,0.00015696,2]
[400736234,1767804642910,-2000.0,0.00015696,2]
[400736236,1767804642919,-267.46074303,0.00015696,2]
[400736238,1767804642928,-2000.0,0.00015696,2]
[400736240,1767804642937,-500.0,0.00015696,2]
[400736242,1767804642946,-277.35679052,0.00015696,2]
[400736244,1767804642955,-2000.0,0.00015696,2]
[400736246,1767804642964,-500.0,0.00015696,2]
[400736248,1767804642974,-2000.0,0.00015696,2]
[400736250,1767804642983,-500.0,0.00015696,2]
[400736252,1767804642992,-2000.0,0.00015696,2]
[400736254,1767804643001,-500.0,0.00015696,2]
[400736256,1767804643010,-2000.0,0.00015696,2]
[400736258,1767804643019,-500.0,0.00015696,2]
[400736260,1767804643028,-2000.0,0.00015696,2]
[400736262,1767804643037,-255.49772714,0.00015696,2]
[400736264,1767804643046,-2000.0,0.00015696,2]
[400736266,1767804643056,-250.0,0.00015696,2]
[400736268,1767804643065,-250.0,0.00015696,2]
[400736270,1767804643074,-250.0,0.00015696,2]
[400736272,1767804643084,-250.0,0.00015696,2]
[400736274,1767804643093,-250.0,0.00015696,2]
[400736276,1767804643103,-250.0,0.00015696,2]
[400736278,1767804643113,-250.0,0.00015696,2]
[400736280,1767804643122,-250.0,0.00015696,2]
[400736282,1767804643135,-250.0,0.00015696,2]
[400736284,1767804643149,-250.0,0.00015696,2]
[400736286,1767804643159,-250.0,0.00015696,2]
[400736288,1767804643168,-500.0,0.00015726,2]
[400736291,1767804643179,-500.0,0.00015731,2]
[400736292,1767804643189,-500.0,0.00015731,2]
[400736295,1767804643198,-1226.0,0.00015731,2]
[400736296,1767804643209,-543.0,0.00015731,2]
[400736299,1767804643218,-500.0,0.00015731,2]
[400736301,1767804643228,-500.0,0.0001578,2]
[400736303,1767804643238,-500.0,0.00015786,2]
[400736306,1767804643247,-500.0,0.00015786,2]
[400736308,1767804643257,-1226.0,0.00015786,2]
[400736310,1767804643266,-543.0,0.00015786,2]
[400736312,1767804643275,-500.0,0.00015786,2]
[400736314,1767804643284,-500.0,0.00015835,2]
[400736316,1767804643294,-500.0,0.0001584,2]
[400736318,1767804643304,-500.0,0.0001584,2]
[400736320,1767804643313,-1226.0,0.0001584,2]
[400736322,1767804643323,-543.0,0.0001584,2]
[400736324,1767804643332,-500.0,0.0001584,2]
[400736326,1767804643342,-151.0,0.00015865,2]
[400736328,1767804643351,-151.0,0.00015881,2]
[400736330,1767804643360,-151.0,0.00015881,2]
[400736332,1767804643370,-500.0,0.00015889,2]
[400736334,1767804643379,-500.0,0.00015889,2]
[400736336,1767804643388,-521.47480439,0.0001589,2]
[400736338,1767804643398,-500.0,0.00015895,2]
[400736340,1767804643407,-491.58151617,0.00015895,2]
[400736342,1767804643417,-1226.0,0.00015895,2]
[400736344,1767804643427,-543.0,0.00015895,2]
[400736346,1767804643436,-500.0,0.00015895,2]
[400736348,1767804643446,-3383.33666527,0.000159,2]
[400736350,1767804643455,-3383.33666527,0.000159,2]
[400736352,1767804643464,-3383.33666527,0.000159,2]
[400736354,1767804643473,-3383.33666527,0.000159,2]
[400736356,1767804643483,-3383.33666527,0.000159,2]
[400736358,1767804643493,-3383.33666527,0.000159,2]
[400736360,1767804643502,-1571.06,0.00015908,2]
[400736362,1767804643511,-500.0,0.0001595,2]
[400736364,1767804643520,-1226.0,0.0001595,2]
[400736366,1767804643530,-543.0,0.0001595,2]
[400736368,1767804643539,-500.0,0.0001595,2]
[400736370,1767804643549,-25143.49381791,0.00015965,2]
[400736372,1767804643557,-1719.15,0.00015966,2]
[400736374,1767804643567,-24850.75281285,0.00015972,2]
[400736376,1767804643576,-500.0,0.00015999,2]
[400736378,1767804643586,-474.29981828,0.00015999,2]
[400736380,1767804643595,-517.05568559,0.00016005,2]
[400736382,1767804643604,-1226.0,0.00016005,2]
[400736384,1767804643613,-543.0,0.00016005,2]
[400736386,1767804643623,-500.0,0.00016005,2]
[400736388,1767804643633,-1226.0,0.0001606,2]
[400736390,1767804643643,-543.0,0.0001606,2]
[400736392,1767804643652,-500.0,0.0001606,2]
[400736394,1767804643661,-3411.42926053,0.00016061,2]
[400736396,1767804643671,-1226.0,0.00016114,2]
[400736398,1767804643680,-543.0,0.00016114,2]
[400736400,1767804643690,-277.0,0.00016114,2]
[400736402,1767804643699,-9247.15,0.00016116,2]
[400736404,1767804643708,-321.82288534,0.00016168,2]
[400736406,1767804643718,-1500.0,0.00016168,2]
[400736408,1767804643727,-1500.0,0.00016168,2]
[400736410,1767804643736,-1500.0,0.00016168,2]
[400736413,1767804643746,-1500.0,0.00016168,2]
[400736415,1767804643756,-1501.56852644,0.00016168,2]
[400736417,1767804643765,-1500.0,0.00016168,2]
[400736419,1767804643774,-1500.0,0.00016168,2]
[400736421,1767804643783,-676.00349903,0.00016168,2]
[400736423,1767804643792,-1500.0,0.00016168,2]
[400736425,1767804643801,-1500.0,0.00016168,2]
[400736427,1767804643810,-1226.0,0.00016169,2]
[400736429,1767804643820,-543.0,0.00016169,2]
[400736431,1767804643829,-1571.06,0.00016182,2]
[400736433,1767804643838,-500.0,0.00016199,2]
[400736435,1767804643848,-3411.87801351,0.00016211,2]
[400736437,1767804643857,-510.0,0.00016217,2]
[400736439,1767804643866,-1226.0,0.00016224,2]
[400736441,1767804643875,-543.0,0.00016224,2]
[400736443,1767804643884,-25143.49381791,0.00016241,2]
[400736445,1767804643893,-500.0,0.00016242,2]
[400736447,1767804643902,-1226.0,0.00016279,2]
[400736449,1767804643911,-543.0,0.00016279,2]
[400736451,1767804643920,-24850.75281285,0.00016293,2]
[400736453,1767804643929,-10632.17664966,0.00016307,2]
[400736455,1767804643938,-1226.0,0.00016333,2]
[400736457,1767804643947,-543.0,0.00016333,2]
[400736459,1767804643957,-1231.13806168,0.00016388,2]
[400736461,1767804643967,-1000.0,0.00016394,2]
[400736463,1767804643977,-500.0,0.00016437,2]
[400736465,1767804643986,-500.0,0.00016437,2]
[400736467,1767804643995,-1229.46799306,0.00016438,2]
[400736469,1767804644004,-1229.46799306,0.00016438,2]
[400736471,1767804644014,-1229.46799306,0.00016438,2]
[400736473,1767804644023,-1229.46799306,0.00016438,2]
[400736474,1767804644032,-1229.46799306,0.00016438,2]
[400736476,1767804644042,-1229.46799306,0.00016438,2]
[400736479,1767804644051,-1229.46799306,0.00016438,2]
[400736481,1767804644060,-1229.46799306,0.00016438,2]
[400736483,1767804644070,-1229.46799306,0.00016438,2]
[400736485,1767804644079,-1229.46799306,0.00016438,2]
[400736487,1767804644088,-1229.46799306,0.00016438,2]
[400736489,1767804644097,-1229.46799306,0.00016438,2]
[400736491,1767804644107,-1229.46799306,0.00016438,2]
[400736493,1767804644116,-1229.46799306,0.00016438,2]
[400736495,1767804644125,-1229.46799306,0.00016438,2]
[400736497,1767804644141,-1229.46799306,0.00016438,2]
[400736499,1767804644151,-1229.46799306,0.00016438,2]
[400736501,1767804644160,-1229.46799306,0.00016438,2]
[400736503,1767804644170,-1229.46799306,0.00016438,2]
[400736505,1767804644179,-1229.46799306,0.00016438,2]
[400736507,1767804644188,-1229.46799306,0.00016438,2]
[400736509,1767804644197,-1229.46799306,0.00016438,2]
[400736511,1767804644208,-1229.46799306,0.00016438,2]
[400736513,1767804644217,-1229.46799306,0.00016438,2]
[400736515,1767804644226,-1229.46799306,0.00016438,2]
[400736517,1767804644236,-1229.46799306,0.00016438,2]
[400736519,1767804644245,-1229.46799306,0.00016438,2]
[400736521,1767804644255,-1229.46799306,0.00016438,2]
[400736523,1767804644264,-1229.46799306,0.00016438,2]
[400736525,1767804644273,-1229.46799306,0.00016438,2]
[400736527,1767804644282,-1229.46799306,0.00016438,2]
[400736529,1767804644292,-1229.46799306,0.00016438,2]
[400736531,1767804644301,-1229.46799306,0.00016438,2]
[400736533,1767804644311,-1229.46799306,0.00016438,2]
[400736535,1767804644324,-1229.46799306,0.00016438,2]
[400736537,1767804644334,-1229.46799306,0.00016438,2]
[400736539,1767804644343,-1229.46799306,0.00016438,2]
[400736541,1767804644353,-1229.46799306,0.00016438,2]
[400736543,1767804644362,-1229.46799306,0.00016438,2]
[400736545,1767804644372,-1229.46799306,0.00016438,2]
[400736547,1767804644381,-1229.46799306,0.00016438,2]
[400736549,1767804644391,-1229.46799306,0.00016438,2]
[400736551,1767804644401,-1229.46799306,0.00016438,2]
[400736553,1767804644410,-1229.46799306,0.00016438,2]
[400736555,1767804644420,-1229.46799306,0.00016438,2]
[400736558,1767804644430,-1229.46799306,0.00016438,2]
[400736559,1767804644442,-1229.46799306,0.00016438,2]
[400736562,1767804644452,-1229.46799306,0.00016438,2]
[400736564,1767804644462,-1229.46799306,0.00016438,2]
[400736566,1767804644472,-1229.46799306,0.00016438,2]
[400736568,1767804644483,-1229.46799306,0.00016438,2]
[400736570,1767804644493,-1229.46799306,0.00016438,2]
[400736572,1767804644504,-1229.46799306,0.00016438,2]
[400736574,1767804644513,-1229.46799306,0.00016438,2]
[400736576,1767804644522,-1229.46799306,0.00016438,2]
[400736578,1767804644531,-1229.46799306,0.00016438,2]
[400736580,1767804644540,-1229.46799306,0.00016438,2]
[400736582,1767804644550,-1229.46799306,0.00016438,2]
[400736584,1767804644559,-1229.46799306,0.00016438,2]
[400736586,1767804644569,-1229.46799306,0.00016438,2]
[400736588,1767804644579,-1229.46799306,0.00016438,2]
[400736590,1767804644588,-1229.46799306,0.00016438,2]
[400736592,1767804644598,-1229.46799306,0.00016438,2]
[400736594,1767804644607,-1229.46799306,0.00016438,2]
[400736596,1767804644618,-1229.46799306,0.00016438,2]
[400736598,1767804644627,-1229.46799306,0.00016438,2]
[400736600,1767804644636,-1229.46799306,0.00016438,2]
[400736602,1767804644646,-4832.06242125,0.00016438,2]
[400736604,1767804644655,-4832.06242125,0.00016438,2]
[400736606,1767804644665,-4832.06242125,0.00016438,2]
[400736608,1767804644674,-4832.06242125,0.00016438,2]
[400736610,1767804644683,-4832.06242125,0.00016438,2]
[400736612,1767804644693,-4832.06242125,0.00016438,2]
[400736614,1767804644702,-4832.06242125,0.00016438,2]
[400736616,1767804644711,-4832.06242125,0.00016438,2]
[400736618,1767804644720,-4832.06242125,0.00016438,2]
[400736620,1767804644730,-4832.06242125,0.00016438,2]
[400736622,1767804644740,-4832.06242125,0.00016438,2]
[400736624,1767804644749,-4832.06242125,0.00016438,2]
[400736626,1767804644760,-4832.06242125,0.00016438,2]
[400736628,1767804644770,-4832.06242125,0.00016438,2]
[400736659,1767804645035,-4832.06242125,0.00016438,2]
[400736661,1767804645044,-4832.06242125,0.00016438,2]
[400736663,1767804645054,-4832.06242125,0.00016438,2]
[400736665,1767804645064,-4832.06242125,0.00016438,2]
[400736667,1767804645075,-4832.06242125,0.00016438,2]
[400736669,1767804645084,-4832.06242125,0.00016438,2]
[400736671,1767804645094,-4832.06242125,0.00016438,2]
[400736673,1767804645103,-4832.06242125,0.00016438,2]
[400736675,1767804645113,-4832.06242125,0.00016438,2]
[400736677,1767804645122,-150.0,0.00016438,2]
[400736679,1767804645133,-800.0,0.00016438,2]
[400736681,1767804645143,-1571.06,0.00016456,2]
[400736683,1767804645152,-150.0,0.00016493,2]
[400736685,1767804645161,-420.0,0.00016508,2]
[400736687,1767804645170,-25143.49381791,0.00016518,2]
[400736690,1767804645181,-28068.0276861,0.00016526,2]
[400736692,1767804645190,-200.0,0.00016548,2]
[400736694,1767804645199,-300.0,0.0001658,2]
[400736696,1767804645210,-2500.0,0.0001658,2]
[400736698,1767804645220,-195.0,0.0001658,2]
[400736700,1767804645229,-600.0,0.0001658,2]
[400736702,1767804645238,-600.0,0.0001658,2]
[400736704,1767804645247,-600.0,0.0001658,2]
[400736706,1767804645257,-600.0,0.0001658,2]
[400736708,1767804645267,-600.0,0.0001658,2]
[400736710,1767804645276,-879.04734679,0.0001658,2]
[400736712,1767804645286,-250.0,0.0001658,2]
[400736713,1767804645295,-1680.0,0.00016592,2]
[400736716,1767804645305,-195.0,0.00016595,2]
[400736718,1767804645315,-300.0,0.00016595,2]
[400736719,1767804645324,-300.0,0.00016595,2]
[400736722,1767804645334,-2500.0,0.00016596,2]
[400736724,1767804645343,-193.0,0.00016596,2]
[400736726,1767804645353,-195.0,0.00016596,2]
[400736728,1767804645362,-24850.75281285,0.00016615,2]
[400736730,1767804645371,-713.67,0.00016628,2]
[400736732,1767804645380,-300.0,0.00016631,2]
[400736733,1767804645389,-600.0,0.00016633,2]
[400736735,1767804645399,-360.78764565,0.00016643,2]
[400736737,1767804645409,-500.0,0.00016643,2]
[400736739,1767804645417,-500.0,0.00016643,2]
[400736741,1767804645426,-322.49416926,0.00016643,2]
[400736743,1767804645435,-507.8387061,0.00016643,2]
[400736745,1767804645445,-182.6941269,0.00016643,2]
[400736747,1767804645456,-578.87202896,0.00016643,2]
[400736749,1767804645465,-500.0,0.00016643,2]
[400736751,1767804645474,-500.0,0.00016643,2]
[400736753,1767804645483,-500.0,0.00016643,2]
[400736755,1767804645493,-500.0,0.00016643,2]
[400736757,1767804645502,-378.44615396,0.00016643,2]
[400736759,1767804645511,-500.0,0.00016643,2]
[400736761,1767804645520,-500.0,0.00016643,2]
[400736763,1767804645530,-500.0,0.00016643,2]
[400736765,1767804645539,-628.50709886,0.00016643,2]
[400736767,1767804645548,-181.06,0.00016697,2]
[400736769,1767804645558,-165.12,0.00016712,2]
[400736772,1767804645568,-2000.0,0.00016716,2]
[400736774,1767804645577,-2000.0,0.00016716,2]
[400736775,1767804645585,-2000.0,0.00016716,2]
[400736776,1767804645594,-1408.10299042,0.00016716,2]
[400736778,1767804645604,-2000.0,0.00016716,2]
[400736779,1767804645613,-2000.0,0.00016716,2]
[400736781,1767804645622,-2000.0,0.00016716,2]
[400736783,1767804645632,-821.53609261,0.00016716,2]
[400736785,1767804645641,-1719.15,0.00016726,2]
[400736786,1767804645651,-1571.06,0.0001673,2]
[400736787,1767804645660,-609.83029456,0.0001679,2]
[400736788,1767804645669,-25143.49381791,0.00016794,2]
[400736789,1767804645679,-300.0,0.00016797,2]
[400736790,1767804645689,-6262.8235126,0.00016827,2]
[400736791,1767804645698,-24850.75281285,0.00016936,2]
[400736792,1767804645707,-500.0,0.00016959,2]
[400736793,1767804645716,-250.0,0.00017,2]
[400736794,1767804645726,-179.52010608,0.00017,2]
[400736796,1767804645736,-1571.06,0.00017004,2]
[400736798,1767804645746,-334.5472959,0.00017065,2]
[400736800,1767804645755,-642.94,0.00017065,2]
[400736802,1767804645765,-287.61899177,0.00017065,2]
[400736804,1767804645774,-25143.49381791,0.00017071,2]
[400736806,1767804645784,-500.0,0.0001719,2]
[400736808,1767804645793,-299.888,0.00017191,2]
[400736810,1767804645802,-847.22084679,0.00017191,2]
[400736812,1767804645812,-503.18143071,0.00017191,2]
[400736814,1767804645821,-500.0,0.00017191,2]
[400736816,1767804645831,-5888.0,0.00017234,2]
[400736818,1767804645840,-1109.26559334,0.00017249,5]
[400736820,1767804645849,-24850.75281285,0.00017257,2]
[400736822,1767804645858,-2500.0,0.00017264,2]
[400736824,1767804645867,-2505.38555235,0.00017264,2]
[400736826,1767804645876,-537.00577444,0.00017264,2]
[400736828,1767804645886,-652.22115376,0.00017264,2]
[400736830,1767804645895,-2500.0,0.00017264,2]
[400736832,1767804645904,-2500.0,0.00017264,2]
[400736834,1767804645913,-600.0,0.00017267,2]
[400736836,1767804645924,-1571.06,0.00017278,2]
[400736838,1767804645933,-181.06,0.00017298,2]
[400736840,1767804645942,-857.95,0.00017303,2]
[400736842,1767804645951,-25143.49381791,0.00017347,2]
[400736844,1767804645960,-216.47,0.000174,2]
[400736846,1767804645969,-866.0,0.00017438,2]
[400736848,1767804645979,-5888.0,0.00017455,2]
[400736850,1767804645988,-1719.15,0.00017486,2]
[400736852,1767804645998,-173.66,0.000175,2]
[400736854,1767804646007,-2000.0,0.000175,2]
[400736856,1767804646016,-300.0,0.00017511,2]
[400736858,1767804646025,-1040.82358149,0.00017534,2]
[400736860,1767804646035,-1688.95959214,0.00017551,2]
[400736862,1767804646045,-1571.06,0.00017552,2]
[400736864,1767804646054,-24850.75281285,0.00017579,2]
[400736866,1767804646064,-1000.0,0.000176,2]
[400736868,1767804646073,-25143.49381791,0.00017624,2]
[400736870,1767804646084,-679.0,0.00017625,2]
[400736872,1767804646093,-192.27404392,0.00017634,2]
[400736874,1767804646103,-300.0,0.00017646,2]
[400736876,1767804646112,-679.0,0.00017666,2]
[400736878,1767804646121,-679.0,0.0001767,2]
[400736880,1767804646131,-1492.11842412,0.00017675,2]
[400736882,1767804646144,-300.0,0.00017688,2]
[400736884,1767804646153,-827.5,0.00017697,2]
[400736886,1767804646162,-1492.11842409,0.00017713,2]
[400736888,1767804646172,-250.0,0.00017741,2]
[400736890,1767804646183,-1455.64956121,0.00017749,2]
[400736892,1767804646192,-1492.11842409,0.0001775,2]
[400736894,1767804646201,-25000.0,0.00017759,3]
[400736896,1767804646211,-679.0,0.00017767,2]
[400736898,1767804646221,-25000.0,0.00017768,3]
[400736900,1767804646230,-679.0,0.00017775,2]
[400736902,1767804646239,-25000.0,0.00017777,3]
[400736904,1767804646249,-25000.0,0.00017786,3]
[400736906,1767804646258,-1492.11842409,0.00017788,2]
[400736908,1767804646267,-25000.0,0.00017794,3]
[400736910,1767804646277,-1603.0,0.00017795,2]
[400736912,1767804646287,-1000.0,0.000178,2]
[400736914,1767804646296,-25000.0,0.00017803,3]
[400736916,1767804646305,-300.0,0.00017809,2]
[400736918,1767804646314,-679.0,0.0001781,2]
[400736920,1767804646325,-25000.0,0.00017812,3]
[400736922,1767804646337,-3000.0,0.00017812,2]
[400736924,1767804646346,-3000.0,0.00017812,2]
[400736926,1767804646356,-3000.0,0.00017812,2]
[400736928,1767804646365,-7335.52737,0.0001782,2]
[400736930,1767804646374,-7335.52737,0.0001782,2]
[400736932,1767804646385,-25000.0,0.00017821,3]
[400736934,1767804646394,-1492.11842409,0.00017825,2]
[400736936,1767804646404,-1571.06,0.00017826,2]
[400736938,1767804646413,-25000.0,0.0001783,3]
[400736940,1767804646423,-7335.52737,0.0001783,2]
[400736941,1767804646432,-25000.0,0.00017838,3]
[400736943,1767804646441,-25000.0,0.00017847,3]
[400736946,1767804646451,-200.0,0.00017855,2]
[400736948,1767804646460,-200.0,0.00017856,2]
[400736950,1767804646469,-25000.0,0.00017856,3]
[400736952,1767804646478,-200.0,0.00017856,2]
[400736954,1767804646488,-200.0,0.00017856,2]
[400736955,1767804646497,-3333.37,0.0001786,2]
[400736958,1767804646507,-194.272,0.0001786,2]
[400736960,1767804646516,-7335.52738,0.0001786,2]
[400736962,1767804646525,-1492.11842409,0.00017863,2]
[400736964,1767804646534,-25000.0,0.00017865,3]
[400736966,1767804646544,-25000.0,0.00017874,3]
[400736968,1767804646554,-1603.0,0.00017879,2]
[400736970,1767804646563,-7335.52737,0.0001788,2]
[400736972,1767804646572,-25000.0,0.00017882,3]
[400736974,1767804646583,-25000.0,0.00017891,3]
[400736976,1767804646591,-25000.0,0.000179,3]
[400736978,1767804646601,-1492.11842409,0.000179,2]
[400736979,1767804646610,-25000.0,0.000179,3]
[400736981,1767804646620,-1000.0,0.000179,2]
[400736983,1767804646628,-24850.75281285,0.000179,2]
[400736985,1767804646638,-2854.32931175,0.000179,2]
[400736986,1767804646647,-25143.49381791,0.000179,2]
[400736988,1767804646656,-19023.7097764,0.000179,2]
[400736990,1767804646665,-220.75068873,0.000179,2]
[400736992,1767804646674,-1321.13623348,0.000179,2]
[400736994,1767804646683,-2214.48327384,0.000179,2]
[400736996,1767804646692,-500.0,0.000179,2]
[400736998,1767804646701,-500.0,0.000179,2]
[400737000,1767804646710,-500.0,0.000179,2]
[400737002,1767804646719,-500.0,0.000179,2]
[400737004,1767804646728,-500.0,0.000179,2]
[400737006,1767804646737,-500.0,0.000179,2]
[400737008,1767804646746,-500.0,0.000179,2]
[400737010,1767804646755,-500.0,0.000179,2]
[400737012,1767804646764,-500.0,0.000179,2]
[400737014,1767804646774,-500.0,0.000179,2]
[400737016,1767804646784,-500.0,0.000179,2]
[400737018,1767804646793,-313.34622116,0.000179,2]
[400737020,1767804646803,-8468.0,0.000179,2]
[400737021,1767804646812,-7335.52737,0.0001791,2]
[400737023,1767804646821,-300.0,0.00017913,2]
[400737026,1767804646831,-679.0,0.00017942,2]
[400737027,1767804646840,-419.4,0.00017946,2]
[400737029,1767804646849,-679.0,0.00017955,2]
[400737031,1767804646858,-220.0,0.00017957,2]
[400737033,1767804646867,-1000.0,0.0001797,2]
[400737035,1767804646877,-1109.90852601,0.0001797,2]
[400737037,1767804646886,-150.0,0.00017973,2]
[400737039,1767804646895,-150.0,0.00017973,2]
[400737041,1767804646904,-181.06,0.00017974,2]
[400737043,1767804646913,-1455.64956121,0.0001799,2]
[400737045,1767804646922,-1455.64956121,0.0001799,2]
[400737047,1767804646931,-419.4,0.00017991,2]
[400737049,1767804646941,-151.0,0.00017997,2]
[400737051,1767804646950,-14422.3254508,0.00017999,2]
[400737053,1767804646959,-1109.26559334,0.00017999,5]